Workbook

Sheet StartHere
B2: Student Identification Sheet (version5.2)
B4: Name | C4: Dallan Delgado | D4: <<- enter your name here | G4: (1) | H4: Add your name to Cell C4 and your Student ID to cell C6. Then Click [Start Here] to finish loading data.
G5: (2) | H5: Change the file name to include your name.
B6: Student ID | C6: 002-46-2565 | D6: <<- enter your Student ID here | G6: (3) | H6: When done with your work, Click [I'm Done]
G7: (3) | H7: Upload the file to the applicable iCollege
B8: Date/time | C8: =NOW() -> 2021-04-24T01:48:08.510 | H8: assignment folder to receive credit for this workshop/tutorial
C9: Spring 2021 | G9: (4) | H9: Never use a file created or started by another student (that is academic dishonesty). All text, codes, writing, data entry, formulas, configuration and instructions must be performed by the individual submitting the work.
C10: You must use Excel Desktop. Cloud Excel 365 will not work for this class. | E10: 2021-04-21T23:08:53.180 | F10: Dallan Delgado started S01
C12: Collaboration Started
C14: Individual Challenge started
C15: Kurt Schmitz © 2020 Do not post or reproduce.
B17: Excel release | C17: =INFO("release") -> 16.0 | D17: << Mac Users below 16.24, please update!
B18: OS | C18: =INFO("OSVERSION") -> Windows (32-bit) NT :.00 | D18: << Windows users with version 16.0 are good to go.

Sheet 5.ID (hidden)
A1: Do Not Alter or Delete this Worksheet or you submission cannot be graded! | E1: DirVer
A2: Action | B2: Name | C2: Panther ID | D2: Date/Time | E2: S01
A3: Start S01 | B3: Dallan Delgado | C3: 002-46-2565 | D3: 2021-04-23T12:27:43.190 | E3: User
A4: Start S01 | B4: Dallan Delgado | C4: 002-46-2565 | D4: 2021-04-23T12:27:18.760 | E4: C:\Users\owna\AppData\Local\Temp
A5: Start S01 | B5: Dallan Delgado | C5: 002-46-2565 | D5: 2021-04-21T23:08:52.900 | E5: Welcome to Microsoft Excel version 16.0 build 13901 running on Windows (32-bit) NT 10.00!
A6: Starter Sheet | B6: None | C6: 0 | D6: 2020-01-01 | E6: S01
E7: User
E8: C:\Users\owna\AppData\Local\Temp
E9: Welcome to Microsoft Excel version 16.0 build 13901 running on Windows (32-bit) NT 10.00!
E10: S01
E11: Dallan Delgado
E13: Welcome to Microsoft Excel version 16.48 build 411 running on Macintosh (Intel) Version 11.0.1 (Build 20B29)!

Sheet Financial information
A1: Donut Information | Z1: Spring 2021
A2: Based on the below data, create the profit model for Donuts to Go. | Z2: Dallan Delgado
A3: Assume that each customer will buy one donut and one cup of coffee
F5: Enter totals | J5: income | K5: expenses | L5: profit | M5: percentage
B6: Time period | E6: Fixed Costs | F6: 7050 | I6: Donut | J6: 3.5 | K6: 0.5 | L6: =J6-K6 -> 3 | M6: =L6/J6 -> 0.8571428571
A7: Revenue: Cup of Coffee | C7: 4 | E7: Varible Costs | F7: 0.85
A8: Revenue: Donut | C8: 3.5 | E8: Coffee | F8: 2000
A9: Donut ingredients per donunt) | B9: per donut | C9: 0.5 | E9: Donut | F9: 2000
A10: paper products: napkins, plates etc
A11: Insurance | B11: month | C11: 200
A13: Maintenance & Repairs to equipment | B13: month | C13: 0 | F13: =C11+C14+C17+C18+C20+C21+C23+C24+C25+C26+C19 -> 7050
A14: Marketing & Promotion: Advertising | B14: month | C14: 50
A15: Coffee | B15: per cup | C15: 0.25
A16: Coffee cups | B16: per cup | C16: 0.1
A17: Payroll: Wages (Owner/ Manager) | B17: month | C17: 2500
A18: Payroll: Wages (per Employees) | B18: month | C18: 1000
A19: Donut and Coffee equipment rent | B19: month | C19: 500
A20: Professional Fees: Accounting | B20: month | C20: 50
A21: Professional Fees: Legal | B21: month | C21: 25
A22: Powdered and Liquid Beverages | C22: 0
A23: Rent | B23: month | C23: 1000
A24: Previous research expense for Donuts advancements | C24: 1500
A25: Supplies: Office | B25: month | C25: 25
A26: Utilities | B26: month | C26: 200
A30: Additional Data
A31: Monthly Production | B31: Lost Sales | C31: Day old revenue | D31: High demand, % above Average | E31: Low Demand, % below average
A32: 4000 | B32: 3 | C32: 1.25 | D32: 0.22 | E32: 0.26
A33: Franchise
A34: Monthly Fixed Expense increase | B34: 7000
A35: Monthly Production Increase | B35: 0.32
A36: Monthly demand increase | B36: 0.24
A37: States of Natures | B37: probabilities
A38: High demand | B38: 0.2
A39: Average demand | B39: 0.55
A40: Low demand | B40: 0.25
A64: Total

Sheet SI and regression Pt 1
A1: Month | B1: Demand | C1: Yearly average | D1: centered moving average | E1: Seasonal Index | F1: Average SI | G1: Deseasonalized | H1: Time period | K1: Regression Output
A2: 2018-01-01 | B2: 2475 | H2: 1 | J2: SUMMARY OUTPUT
A3: 2018-02-01 | B3: 2665.5 | H3: 2
A4: 2018-03-01 | B4: 3597.5 | H4: 3 | J4: Regression Statistics
A5: 2018-04-01 | B5: 3104 | H5: 4 | J5: Multiple R | K5: 0.9999977884
A6: 2018-05-01 | B6: 2410 | H6: 5 | J6: R Square | K6: 0.9999955767
A7: 2018-06-01 | B7: 3592 | H7: 6 | J7: Adjusted R Square | K7: 0.9999954466
A8: 2018-07-01 | B8: 2740 | D8: =AVERAGE(AVERAGE(B2:B13),AVERAGE(B3:B14)) -> 3044.333333 | E8: =B8/D8 -> 0.9000328479 | F8: =AVERAGEIF(A$8:A$31,A8,E$8:E$31) -> 0.9000328479 | G8: =B8/F8 -> 3044.333333 | H8: 7 | J8: Standard Error | K8: 0.6845765959
A9: 2018-08-01 | B9: 2683.5 | D9: =AVERAGE(AVERAGE(B3:B14),AVERAGE(B4:B15)) -> 3042.895833 | E9: =B9/D9 -> 0.8818901951 | F9: =AVERAGEIF(A$8:A$31,A9,E$8:E$31) -> 0.8818901951 | G9: =B9/F9 -> 3042.895833 | H9: 8 | J9: Observations | K9: 36
A10: 2018-09-01 | B10: 2697.5 | D10: 3022.854167 | E10: 0.8923685535 | F10: 0.8923685535 | G10: 3022.854167 | H10: 9
A11: 2018-10-01 | B11: 3090 | D11: 2991.75 | E11: 1.032840311 | F11: 1.032840311 | G11: 2991.75 | H11: 10 | J11: ANOVA
A12: 2018-11-01 | B12: 3342.5 | C12: Put yearly average in below cell | D12: 3037.354167 | E12: 1.100464357 | F12: 1.100464357 | G12: 3037.354167 | H12: 11 | K12: df | L12: SS | M12: MS | N12: F | O12: Significance F
A13: 2018-12-01 | B13: 4304.5 | C13: =AVERAGE(B2:B13) -> 3058.5 | D13: 3082.020833 | E13: 1.396648573 | F13: 1.396648573 | G13: 3082.020833 | H13: 12 | J13: Regression | K13: 1 | L13: 3602288.288 | M13: 3602288.288 | N13: 7686601.583 | O13: 1.290129345e-92
A14: 2019-01-01 | B14: 2135 | D14: 3084 | E14: 0.6922827497 | F14: 0.6922827497 | G14: 3084 | H14: 13 | J14: Residual | K14: 34 | L14: 15.93393393 | M14: 0.4686451157
A15: 2019-02-01 | B15: 2971 | D15: 3101.645833 | E15: 0.9578785457 | F15: 0.9578785457 | G15: 3101.645833 | H15: 14 | J15: Total | K15: 35 | L15: 3602304.222
A16: 2019-03-01 | B16: 2811 | D16: 3133.3125 | E16: 0.8971336246 | F16: 0.8971336246 | G16: 3133.3125 | H16: 15
A17: 2019-04-01 | B17: 3144 | D17: 3175.833333 | E17: 0.9899763842 | F17: 0.9899763842 | G17: 3175.833333 | H17: 16 | K17: Coefficients | L17: Standard Error | M17: t Stat | N17: P-value | O17: Lower 95% | P17: Upper 95% | Q17: Lower 95.0% | R17: Upper 95.0%
A18: 2019-05-01 | B18: 3464.5 | D18: 3241.041667 | E18: 1.068946455 | F18: 1.068946455 | G18: 3241.041667 | H18: 17 | J18: Intercept | K18: 43069.44444 | L18: 0.2330307339 | M18: 184823.022 | N18: 1.254420169e-154 | O18: 43068.97087 | P18: 43069.91802 | Q18: 43068.97087 | R18: 43069.91802
A19: 2019-06-01 | B19: 3609.5 | D19: 3307.375 | E19: 1.091348879 | F19: 1.091348879 | G19: 3307.375 | H19: 18 | J19: X Variable 1 | K19: 30.45045045 | L19: 0.01098314042 | M19: 2772.472107 | N19: 1.290129345e-92 | O19: 30.42813002 | P19: 30.47277088 | Q19: 30.42813002 | R19: 30.47277088
A20: 2019-07-01 | B20: 2770 | D20: 3354.458333 | E20: 0.8257667035 | F20: 0.8257667035 | G20: 3354.458333 | H20: 19
A21: 2019-08-01 | B21: 3077 | D21: 3375.75 | E21: 0.9115011479 | F21: 0.9115011479 | G21: 3375.75 | H21: 20
A22: 2019-09-01 | B22: 3064 | D22: 3383.375 | E22: 0.9056046108 | F22: 0.9056046108 | G22: 3383.375 | H22: 21
A23: 2019-10-01 | B23: 3744 | D23: 3405.375 | E23: 1.099438388 | F23: 1.099438388 | G23: 3405.375 | H23: 22
A24: 2019-11-01 | B24: 4253.5 | C24: Put yearly average in below cell | D24: 3443.416667 | E24: 1.235255681 | F24: 1.235255681 | G24: 3443.416667 | H24: 23
A25: 2019-12-01 | B25: 4985.5 | C25: =AVERAGE(B14:B25) -> 3335.75 | D25: 3476.125 | E25: 1.434211946 | F25: 1.434211946 | G25: 3476.125 | H25: 24
A26: 2020-01-01 | B26: 2584 | D26: 3498.375 | E26: 0.738628649 | F26: 0.738628649 | G26: 3498.375 | H26: 25
A27: 2020-02-01 | B27: 3033 | D27: 3523.729167 | E27: 0.8607358445 | F27: 0.8607358445 | G27: 3523.729167 | H27: 26
A28: 2020-03-01 | B28: 2932 | D28: 3536.145833 | E28: 0.8291513241 | F28: 0.8291513241 | G28: 3536.145833 | H28: 27
A29: 2020-04-01 | B29: 3551 | D29: 3549.625 | E29: 1.000387365 | F29: 1.000387365 | G29: 3549.625 | H29: 28
A30: 2020-05-01 | B30: 3970.5 | D30: 3585.8125 | E30: 1.107280428 | F30: 1.107280428 | G30: 3585.8125 | H30: 29
A31: 2020-06-01 | B31: 3888.5 | D31: 3596.5625 | E31: 1.081171257 | F31: 1.081171257 | G31: 3596.5625 | H31: 30
A32: 2020-07-01 | B32: 3025 | H32: 31
A33: 2020-08-01 | B33: 3430.5 | H33: 32
A34: 2020-09-01 | B34: 3008.5 | H34: 33
A35: 2020-10-01 | B35: 4123 | H35: 34
A36: 2020-11-01 | B36: 4743 | C36: Put yearly average in below cell | H36: 35 | I36: Use the average seasonal Index in the column for year 2018
A37: 2020-12-01 | B37: 4754 | C37: =AVERAGE(B26:B37) -> 3586.916667 | H37: 36 | I37: Seasonalized forecast
K38: When you move your forecast to the profit models, you must use an equation, not just copy the values
B40: Intercept
B41: slope | C41: =SLOPE(demand,periods) -> 33.74684685
Z100: Dallan Delgado | AA100: Dallan Delgado
Z102: Spring 2021 | AA102: Spring 2021

Sheet Current operations Pt2 & Pt3
A1: CURRENT OPERATIONS | E1: Monthly Production | F1: Lost Sales | G1: Day old revenue | Z1: test
A2: Part 2 | E2: 4000 | F2: 3 | G2: 1.25 | Z2: Summer 2020
A3: AVERAGE DEMAND
A4: Month | B4: Jan | C4: Feb | D4: Mar | E4: Apr | F4: May | G4: Jun | H4: Jul | I4: Aug | J4: Sep | K4: Oct | L4: Nov | M4: Dec
A5: Demand | B5: 4000 | C5: 4000 | D5: 4000 | E5: 4000 | F5: 4000 | G5: 4000 | H5: 4000 | I5: 4000 | J5: 4000 | K5: 4000 | L5: 4000 | M5: 4000
A6: satisfied demand | B6: =B5-3 -> 3997 | C6: =C5-3 -> 3997 | D6: 3997 | E6: 3997 | F6: 3997 | G6: 3997 | H6: 3997 | I6: 3997 | J6: 3997 | K6: 3997 | L6: 3997 | M6: 3997
A7: Extra donuts(over) | B7: ='Financial information '!$D$32*B5 -> 880 | C7: ='Financial information '!$D$32*C5 -> 880 | D7: ='Financial information '!$D$32*D5 -> 880 | E7: ='Financial information '!$D$32*E5 -> 880 | F7: ='Financial information '!$D$32*F5 -> 880 | G7: ='Financial information '!$D$32*G5 -> 880 | H7: ='Financial information '!$D$32*H5 -> 880 | I7: ='Financial information '!$D$32*I5 -> 880 | J7: ='Financial information '!$D$32*J5 -> 880 | K7: ='Financial information '!$D$32*K5 -> 880 | L7: ='Financial information '!$D$32*L5 -> 880 | M7: ='Financial information '!$D$32*M5 -> 880
A8: Unsatisfied customers (short) | B8: ='Financial information '!$E$32*B5 -> 1040 | C8: ='Financial information '!$E$32*C5 -> 1040 | D8: ='Financial information '!$E$32*D5 -> 1040 | E8: ='Financial information '!$E$32*E5 -> 1040 | F8: ='Financial information '!$E$32*F5 -> 1040 | G8: ='Financial information '!$E$32*G5 -> 1040 | H8: ='Financial information '!$E$32*H5 -> 1040 | I8: ='Financial information '!$E$32*I5 -> 1040 | J8: ='Financial information '!$E$32*J5 -> 1040 | K8: ='Financial information '!$E$32*K5 -> 1040 | L8: ='Financial information '!$E$32*L5 -> 1040 | M8: ='Financial information '!$E$32*M5 -> 1040
A9: Revenue
A10: coffee | B10: ='Financial information '!$C$7*2000 -> 8000 | C10: ='Financial information '!$C$7*2000 -> 8000 | D10: ='Financial information '!$C$7*2000 -> 8000 | E10: ='Financial information '!$C$7*2000 -> 8000 | F10: ='Financial information '!$C$7*2000 -> 8000 | G10: ='Financial information '!$C$7*2000 -> 8000 | H10: ='Financial information '!$C$7*2000 -> 8000 | I10: ='Financial information '!$C$7*2000 -> 8000 | J10: ='Financial information '!$C$7*2000 -> 8000 | K10: ='Financial information '!$C$7*2000 -> 8000 | L10: ='Financial information '!$C$7*2000 -> 8000 | M10: ='Financial information '!$C$7*2000 -> 8000
A11: donut | B11: ='Financial information '!$C$8*2000 -> 7000 | C11: ='Financial information '!$C$8*2000 -> 7000 | D11: ='Financial information '!$C$8*2000 -> 7000 | E11: ='Financial information '!$C$8*2000 -> 7000 | F11: ='Financial information '!$C$8*2000 -> 7000 | G11: ='Financial information '!$C$8*2000 -> 7000 | H11: ='Financial information '!$C$8*2000 -> 7000 | I11: ='Financial information '!$C$8*2000 -> 7000 | J11: ='Financial information '!$C$8*2000 -> 7000 | K11: ='Financial information '!$C$8*2000 -> 7000 | L11: ='Financial information '!$C$8*2000 -> 7000 | M11: ='Financial information '!$C$8*2000 -> 7000
A12: Revenue from day old sales | B12: =1.25*4000 -> 5000 | C12: =1.25*4000 -> 5000 | D12: 5000 | E12: 5000 | F12: 5000 | G12: 5000 | H12: 5000 | I12: 5000 | J12: 5000 | K12: 5000 | L12: 5000 | M12: 5000
A13: Total Revenue | B13: =SUM(B10:B12) -> 20000 | C13: =SUM(C10:C12) -> 20000 | D13: 20000 | E13: 20000 | F13: 20000 | G13: 20000 | H13: 20000 | I13: 20000 | J13: 20000 | K13: 20000 | L13: 20000 | M13: 20000
A14: Expenses
A15: Fixed Expenses | B15: 7050 | C15: 7050 | D15: 7050 | E15: 7050 | F15: 7050 | G15: 7050 | H15: 7050 | I15: 7050 | J15: 7050 | K15: 7050 | L15: 7050 | M15: 7050
A16: Total Fixed Expense | B16: 7050 | C16: 7050 | D16: 7050 | E16: 7050 | F16: 7050 | G16: 7050 | H16: 7050 | I16: 7050 | J16: 7050 | K16: 7050 | L16: 7050 | M16: 7050
A18: Variable Expenses
A19: Coffee Variable expense | B19: =0.35*2000 -> 700 | C19: =0.35*2000 -> 700 | D19: 700 | E19: 700 | F19: 700 | G19: 700 | H19: 700 | I19: 700 | J19: 700 | K19: 700 | L19: 700 | M19: 700
A20: Donut Variable expense | B20: =0.5*2000 -> 1000 | C20: =0.5*2000 -> 1000 | D20: 1000 | E20: 1000 | F20: 1000 | G20: 1000 | H20: 1000 | I20: 1000 | J20: 1000 | K20: 1000 | L20: 1000 | M20: 1000
A21: Total Variable Expenses | B21: =B19+B20 -> 1700 | C21: =C19+C20 -> 1700 | D21: 1700 | E21: 1700 | F21: 1700 | G21: 1700 | H21: 1700 | I21: 1700 | J21: 1700 | K21: 1700 | L21: 1700 | M21: 1700
A22: Expenses: due to lost sales | B22: =0.85*3 -> 2.55 | C22: =0.85*3 -> 2.55 | D22: 2.55 | E22: 2.55 | F22: 2.55 | G22: 2.55 | H22: 2.55 | I22: 2.55 | J22: 2.55 | K22: 2.55 | L22: 2.55 | M22: 2.55
A23: Total Expenses | B23: =B21+B22+B16 -> 8752.55 | C23: =C21+C22+C16 -> 8752.55 | D23: 8752.55 | E23: 8752.55 | F23: 8752.55 | G23: 8752.55 | H23: 8752.55 | I23: 8752.55 | J23: 8752.55 | K23: 8752.55 | L23: 8752.55 | M23: 8752.55
N24: Yearly Total
A25: Profit Donuts and Coffee | B25: =B13-B23 -> 11247.45 | C25: =C13-C23 -> 11247.45 | D25: 11247.45 | E25: 11247.45 | F25: 11247.45 | G25: 11247.45 | H25: 11247.45 | I25: 11247.45 | J25: 11247.45 | K25: 11247.45 | L25: 11247.45 | M25: 11247.45
A27: Part 3 | B27: You should be able to copy from average to high and low and then just make some modifications
A28: HIGH DEMAND
A29: Month
A30: Demand | B30: =(4000*20%)+4000 -> 4800
A31: satisfied demand | B31: =B30-3 -> 4797
A32: Extra donuts(over) | B32: =B30*'Financial information '!D32 -> 1056
A33: Unsatisfied customers (short) | B33: =26%*B30 -> 1248
A34: Revenue
A35: coffee | B35: ='Financial information '!C7*2400 -> 9600
A36: donut | B36: ='Financial information '!C8*2400 -> 8400
A37: Revenue from day old sales | B37: =1.25*B30 -> 6000
A38: Total Revenue | B38: =SUM(B35:B37) -> 24000
A39: Expenses
A40: Fixed Expenses | B40: =+B15 -> 7050
A41: Total Fixed Expense | B41: =+B16 -> 7050
A43: Variable Expenses
A44: Coffee Variable expense | B44: =0.35*2400 -> 840
A45: Donut Variable expense | B45: =0.5*2400 -> 1200
A46: Total Variable Expenses | B46: =B44+B45 -> 2040
A47: Expenses: due to lost sales | B47: =0.85*3 -> 2.55
A48: Total Expenses | B48: =B46+B47 -> 2042.55
N49: Yearly Total
A50: Profit Donuts and Coffee | B50: =B38-B41-B48 -> 14907.45
A52: Part 3
A53: LOW DEMAND
A54: Month
A55: Demand | B55: =4000-(4000*'Financial information '!B40) -> 3000
A56: satisfied demand | B56: =B55-3 -> 2997
A57: Extra donuts(over) | B57: =22%*B55 -> 660
A58: Unsatisfied customers (short) | B58: =B55-B56 -> 3
A59: Revenue
A60: coffee | B60: ='Financial information '!C7*1500 -> 6000
A61: donut | B61: ='Financial information '!C8*1500 -> 5250
A62: Revenue from day old sales | B62: =B55*1.25 -> 3750
A63: Total Revenue | B63: =SUM(B60:B62) -> 15000
A64: Expenses
A65: Fixed Expenses | B65: =B40 -> 7050
A66: Total Fixed Expense | B66: =B41 -> 7050
A68: Variable Expenses
A69: Coffee Variable expense | B69: =0.35*1500 -> 525
A70: Donut Variable expense | B70: =0.5*1500 -> 750
A71: Total Variable Expenses | B71: =B69+B70 -> 1275
A72: Expenses: due to lost sales | B72: =0.85*3 -> 2.55
A73: Total Expenses | B73: =B71+B72+B66 -> 8327.55
N74: Yearly Total
A75: Profit Donuts and Coffee | B75: =B63-B73 -> 6672.45
Z200: Dallan Delgado
Z201: Spring 2021

Sheet Franchise operations Pt2 & Pt3
A1: FRANCHISE | E1: Monthly Production | F1: Lost Sales | G1: Day old revenue
A2: Part 2 | E2: 4000 | F2: 3 | G2: 1.25
A3: AVERAGE DEMAND
A4: Month | B4: Jan | C4: Feb | D4: Mar | E4: Apr | F4: May | G4: Jun | H4: Jul | I4: Aug | J4: Sep | K4: Oct | L4: Nov | M4: Dec
A5: Demand | B5: 4000 | C5: ='Franchise operations Pt2 & Pt3'!B5*124% -> 4960 | D5: ='Franchise operations Pt2 & Pt3'!C5*124% -> 6150.4 | E5: ='Franchise operations Pt2 & Pt3'!D5*124% -> 7626.496 | F5: ='Franchise operations Pt2 & Pt3'!E5*124% -> 9456.85504 | G5: ='Franchise operations Pt2 & Pt3'!F5*124% -> 11726.50025 | H5: ='Franchise operations Pt2 & Pt3'!G5*124% -> 14540.86031 | I5: ='Franchise operations Pt2 & Pt3'!H5*124% -> 18030.66678 | J5: ='Franchise operations Pt2 & Pt3'!I5*124% -> 22358.02681 | K5: ='Franchise operations Pt2 & Pt3'!J5*124% -> 27723.95325 | L5: ='Franchise operations Pt2 & Pt3'!K5*124% -> 34377.70203 | M5: ='Franchise operations Pt2 & Pt3'!L5*124% -> 42628.35051
A6: satisfied demand | B6: =B5-3 -> 3997 | C6: ='Franchise operations Pt2 & Pt3'!B6*124% -> 4956.28 | D6: ='Franchise operations Pt2 & Pt3'!C6*124% -> 6145.7872 | E6: ='Franchise operations Pt2 & Pt3'!D6*124% -> 7620.776128 | F6: ='Franchise operations Pt2 & Pt3'!E6*124% -> 9449.762399 | G6: ='Franchise operations Pt2 & Pt3'!F6*124% -> 11717.70537 | H6: ='Franchise operations Pt2 & Pt3'!G6*124% -> 14529.95466 | I6: ='Franchise operations Pt2 & Pt3'!H6*124% -> 18017.14378 | J6: ='Franchise operations Pt2 & Pt3'!I6*124% -> 22341.25829 | K6: ='Franchise operations Pt2 & Pt3'!J6*124% -> 27703.16028 | L6: ='Franchise operations Pt2 & Pt3'!K6*124% -> 34351.91875 | M6: ='Franchise operations Pt2 & Pt3'!L6*124% -> 42596.37925
A7: Extra donuts(over) | B7: =4000-('Franchise operations Pt2 & Pt3'!B5*'Financial information '!D32) -> 3120 | C7: ='Franchise operations Pt2 & Pt3'!B7*124% -> 3868.8 | D7: ='Franchise operations Pt2 & Pt3'!C7*124% -> 4797.312 | E7: ='Franchise operations Pt2 & Pt3'!D7*124% -> 5948.66688 | F7: ='Franchise operations Pt2 & Pt3'!E7*124% -> 7376.346931 | G7: ='Franchise operations Pt2 & Pt3'!F7*124% -> 9146.670195 | H7: ='Franchise operations Pt2 & Pt3'!G7*124% -> 11341.87104 | I7: ='Franchise operations Pt2 & Pt3'!H7*124% -> 14063.92009 | J7: ='Franchise operations Pt2 & Pt3'!I7*124% -> 17439.26091 | K7: ='Franchise operations Pt2 & Pt3'!J7*124% -> 21624.68353 | L7: ='Franchise operations Pt2 & Pt3'!K7*124% -> 26814.60758 | M7: ='Franchise operations Pt2 & Pt3'!L7*124% -> 33250.1134
A8: Unsatisfied customers (short) | B8: =4000-('Financial information '!E32*B5) -> 2960 | C8: ='Franchise operations Pt2 & Pt3'!B8*124% -> 3670.4 | D8: ='Franchise operations Pt2 & Pt3'!C8*124% -> 4551.296 | E8: ='Franchise operations Pt2 & Pt3'!D8*124% -> 5643.60704 | F8: ='Franchise operations Pt2 & Pt3'!E8*124% -> 6998.07273 | G8: ='Franchise operations Pt2 & Pt3'!F8*124% -> 8677.610185 | H8: ='Franchise operations Pt2 & Pt3'!G8*124% -> 10760.23663 | I8: ='Franchise operations Pt2 & Pt3'!H8*124% -> 13342.69342 | J8: ='Franchise operations Pt2 & Pt3'!I8*124% -> 16544.93984 | K8: ='Franchise operations Pt2 & Pt3'!J8*124% -> 20515.7254 | L8: ='Franchise operations Pt2 & Pt3'!K8*124% -> 25439.4995 | M8: ='Franchise operations Pt2 & Pt3'!L8*124% -> 31544.97938
A9: Revenue
A10: coffee | B10: =4*B5 -> 16000 | C10: =4*C5 -> 19840 | D10: 24601.6 | E10: 30505.984 | F10: 37827.42016 | G10: 46906.001 | H10: 58163.44124 | I10: 72122.66714 | J10: 89432.10725 | K10: 110895.813 | L10: 137510.8081 | M10: 170513.402
A11: donut | B11: =4*B6 -> 15988 | C11: 19825.12 | D11: 24583.1488 | E11: 30483.10451 | F11: 37799.04959 | G11: 46870.8215 | H11: 58119.81866 | I11: 72068.57513 | J11: 89365.03317 | K11: 110812.6411 | L11: 137407.675 | M11: 170385.517
A12: Revenue from day old sales | B12: 12480 | C12: 15475.2 | D12: 19189.248 | E12: 23794.66752 | F12: 29505.38772 | G12: 36586.68078 | H12: 45367.48417 | I12: 56255.68037 | J12: 69757.04365 | K12: 86498.73413 | L12: 107258.4303 | M12: 133000.4536
A13: Total Revenue | B13: =SUM(B10:B12) -> 44468 | C13: =SUM(C10:C12) -> 55140.32 | D13: 68373.9968 | E13: 84783.75603 | F13: 105131.8575 | G13: 130363.5033 | H13: 161650.7441 | I13: 200446.9226 | J13: 248554.1841 | K13: 308207.1882 | L13: 382176.9134 | M13: 473899.3726
A14: Expenses
A15: Fixed Expenses | B15: 7050 | C15: =B15+7000 -> 14050 | D15: =C15+7000 -> 21050 | E15: =D15+7000 -> 28050 | F15: 35050 | G15: 42050 | H15: 49050 | I15: 56050 | J15: 63050 | K15: 70050 | L15: 77050 | M15: 84050
A16: Total Fixed Expense | B16: =B15 -> 7050 | C16: =C15 -> 14050 | D16: =D15 -> 21050 | E16: 28050 | F16: 35050 | G16: 42050 | H16: 49050 | I16: 56050 | J16: 63050 | K16: 70050 | L16: 77050 | M16: 84050
A18: Variable Expenses
A19: Coffee Variable expense | B19: =0.35*B10 -> 5600 | C19: =0.35*C10 -> 6944 | D19: =0.35*D10 -> 8610.56 | E19: 10677.0944 | F19: 13239.59706 | G19: 16417.10035 | H19: 20357.20443 | I19: 25242.9335 | J19: 31301.23754 | K19: 38813.53455 | L19: 48128.78284 | M19: 59679.69072
A20: Donut Variable expense | B20: =0.5*B11 -> 7994 | C20: =0.5*C11 -> 9912.56 | D20: =0.5*D11 -> 12291.5744 | E20: 15241.55226 | F20: 18899.5248 | G20: 23435.41075 | H20: 29059.90933 | I20: 36034.28757 | J20: 44682.51658 | K20: 55406.32056 | L20: 68703.8375 | M20: 85192.7585
A21: Total Variable Expenses | B21: =B19+B20 -> 13594 | C21: =C19+C20 -> 16856.56 | D21: =D19+D20 -> 20902.1344 | E21: 25918.64666 | F21: 32139.12185 | G21: 39852.5111 | H21: 49417.11376 | I21: 61277.22106 | J21: 75983.75412 | K21: 94219.85511 | L21: 116832.6203 | M21: 144872.4492
A22: Expenses: due to lost sales | B22: =0.85*3 -> 2.55 | C22: =0.85*3 -> 2.55 | D22: 2.55 | E22: 2.55 | F22: 2.55 | G22: 2.55 | H22: 2.55 | I22: 2.55 | J22: 2.55 | K22: 2.55 | L22: 2.55 | M22: 2.55
A23: Total Expenses | B23: =B21+B22+B16 -> 20646.55 | C23: =C21+C22+C16 -> 30909.11 | D23: 41954.6844 | E23: 53971.19666 | F23: 67191.67185 | G23: 81905.0611 | H23: 98469.66376 | I23: 117329.7711 | J23: 139036.3041 | K23: 164272.4051 | L23: 193885.1703 | M23: 228924.9992
N24: Yearly Total
A25: Profit Donuts and Coffee | B25: =B13-B23 -> 23821.45 | C25: =C13-C23 -> 24231.21 | D25: 26419.3124 | E25: 30812.55938 | F25: 37940.18563 | G25: 48458.44218 | H25: 63181.0803 | I25: 83117.15157 | J25: 109517.8799 | K25: 143934.7831 | L25: 188291.7431 | M25: 244974.3734 | N25: =SUM(B25:M25) -> 1024700.171
A27: Part 3
A28: HIGH DEMAND
A29: Month
A30: Demand | B30: =4000*124% -> 4960 | C30: =B30*124% -> 6150.4 | D30: =C30*124% -> 7626.496 | E30: 9456.85504 | F30: 11726.50025 | G30: 14540.86031 | H30: 18030.66678 | I30: 22358.02681 | J30: 27723.95325 | K30: 34377.70203 | L30: 42628.35051 | M30: 52859.15464
A31: satisfied demand | B31: =4000*124% -> 4960 | C31: =B31*124% -> 6150.4 | D31: =C31*124% -> 7626.496 | E31: 9456.85504 | F31: 11726.50025 | G31: 14540.86031 | H31: 18030.66678 | I31: 22358.02681 | J31: 27723.95325 | K31: 34377.70203 | L31: 42628.35051 | M31: 52859.15464
A32: Extra donuts(over) | B32: =(B31*124%)-B31 -> 1190.4 | C32: =B32*124% -> 1476.096 | D32: =C32*124% -> 1830.35904 | E32: 2269.64521 | F32: 2814.36006 | G32: 3489.806474 | H32: 4327.360028 | I32: 5365.926435 | J32: 6653.748779 | K32: 8250.648486 | L32: 10230.80412 | M32: 12686.19711
A33: Unsatisfied customers (short) | B33: =3*132% -> 3.96 | C33: =B33*124% -> 4.9104 | D33: =C33*124% -> 6.088896 | E33: 7.55023104 | F33: 9.36228649 | G33: 11.60923525 | H33: 14.39545171 | I33: 17.85036012 | J33: 22.13444654 | K33: 27.44671371 | L33: 34.03392501 | M33: 42.20206701
A34: Revenue
A35: coffee | B35: =4*B30 -> 19840 | C35: =4*C30 -> 24601.6 | D35: =4*D30 -> 30505.984 | E35: 37827.42016 | F35: 46906.001 | G35: 58163.44124 | H35: 72122.66714 | I35: 89432.10725 | J35: 110895.813 | K35: 137510.8081 | L35: 170513.402 | M35: 211436.6185
A36: donut | B36: =B30*3.5 -> 17360 | C36: =C30*3.5 -> 21526.4 | D36: =D30*3.5 -> 26692.736 | E36: 33098.99264 | F36: 41042.75087 | G36: 50893.01108 | H36: 63107.33374 | I36: 78253.09384 | J36: 97033.83636 | K36: 120321.9571 | L36: 149199.2268 | M36: 185007.0412
A37: Revenue from day old sales | B37: =B30*1.25 -> 6200 | C37: =C30*1.25 -> 7688 | D37: 9533.12 | E37: 11821.0688 | F37: 14658.12531 | G37: 18176.07539 | H37: 22538.33348 | I37: 27947.53351 | J37: 34654.94156 | K37: 42972.12753 | L37: 53285.43814 | M37: 66073.94329
A38: Total Revenue | B38: =SUM(B35:B37) -> 43400 | C38: =SUM(C35:C37) -> 53816 | D38: 66731.84 | E38: 82747.4816 | F38: 102606.8772 | G38: 127232.5277 | H38: 157768.3344 | I38: 195632.7346 | J38: 242584.5909 | K38: 300804.8927 | L38: 372998.067 | M38: 462517.6031
A39: Expenses
A40: Fixed Expenses | B40: 7050 | C40: =B40+7000 -> 14050 | D40: =C40+7000 -> 21050 | E40: 28050 | F40: 35050 | G40: 42050 | H40: 49050 | I40: 56050 | J40: 63050 | K40: 70050 | L40: 77050 | M40: 84050
A41: Total Fixed Expense | B41: =B40 -> 7050 | C41: =C40 -> 14050 | D41: 21050 | E41: 28050 | F41: 35050 | G41: 42050 | H41: 49050 | I41: 56050 | J41: 63050 | K41: 70050 | L41: 77050 | M41: 84050
A43: Variable Expenses
A44: Coffee Variable expense | B44: =0.35*B30 -> 1736 | C44: =0.35*C30 -> 2152.64 | D44: =0.35*D30 -> 2669.2736 | E44: 3309.899264 | F44: 4104.275087 | G44: 5089.301108 | H44: 6310.733374 | I44: 7825.309384 | J44: 9703.383636 | K44: 12032.19571 | L44: 14919.92268 | M44: 18500.70412
A45: Donut Variable expense | B45: =0.5*B30 -> 2480 | C45: =0.5*C30 -> 3075.2 | D45: =0.5*D30 -> 3813.248 | E45: 4728.42752 | F45: 5863.250125 | G45: 7270.430155 | H45: 9015.333392 | I45: 11179.01341 | J45: 13861.97662 | K45: 17188.85101 | L45: 21314.17526 | M45: 26429.57732
A46: Total Variable Expenses | B46: =B44+B45 -> 4216 | C46: =C44+C45 -> 5227.84 | D46: =D44+D45 -> 6482.5216 | E46: 8038.326784 | F46: 9967.525212 | G46: 12359.73126 | H46: 15326.06677 | I46: 19004.32279 | J46: 23565.36026 | K46: 29221.04672 | L46: 36234.09794 | M46: 44930.28144
A47: Expenses: due to lost sales | B47: =0.85*3 -> 2.55 | C47: =0.85*3 -> 2.55 | D47: 2.55 | E47: 2.55 | F47: 2.55 | G47: 2.55 | H47: 2.55 | I47: 2.55 | J47: 2.55 | K47: 2.55 | L47: 2.55 | M47: 2.55
A48: Total Expenses | B48: =B46+B47+B41 -> 11268.55 | C48: =C46+C47+C41 -> 19280.39 | D48: 27535.0716 | E48: 36090.87678 | F48: 45020.07521 | G48: 54412.28126 | H48: 64378.61677 | I48: 75056.87279 | J48: 86617.91026 | K48: 99273.59672 | L48: 113286.6479 | M48: 128982.8314
N49: Yearly Total
A50: Profit Donuts and Coffee | B50: =B38-B48 -> 32131.45 | C50: =C38-C48 -> 34535.61 | D50: 39196.7684 | E50: 46656.60482 | F50: 57586.80197 | G50: 72820.24645 | H50: 93389.71759 | I50: 120575.8618 | J50: 155966.6806 | K50: 201531.296 | L50: 259711.419 | M50: 333534.7716 | N50: =SUM(B50:M50) -> 1447637.228
A52: Part 3
A53: LOW DEMAND
A54: Month
A55: Demand | B55: =('Franchise operations Pt2 & Pt3'!B5*25%)+B5 -> 5000 | C55: =('Franchise operations Pt2 & Pt3'!C5*25%)+C5 -> 6200 | D55: =('Franchise operations Pt2 & Pt3'!D5*25%)+D5 -> 7688 | E55: =('Franchise operations Pt2 & Pt3'!E5*25%)+E5 -> 9533.12 | F55: =('Franchise operations Pt2 & Pt3'!F5*25%)+F5 -> 11821.0688 | G55: =('Franchise operations Pt2 & Pt3'!G5*25%)+G5 -> 14658.12531 | H55: =('Franchise operations Pt2 & Pt3'!H5*25%)+H5 -> 18176.07539 | I55: =('Franchise operations Pt2 & Pt3'!I5*25%)+I5 -> 22538.33348 | J55: =('Franchise operations Pt2 & Pt3'!J5*25%)+J5 -> 27947.53351 | K55: =('Franchise operations Pt2 & Pt3'!K5*25%)+K5 -> 34654.94156 | L55: =('Franchise operations Pt2 & Pt3'!L5*25%)+L5 -> 42972.12753 | M55: =('Franchise operations Pt2 & Pt3'!M5*25%)+M5 -> 53285.43814
A56: satisfied demand | B56: =B55-3 -> 4997 | C56: =C55-3 -> 6197 | D56: 7685 | E56: 9530.12 | F56: 11818.0688 | G56: 14655.12531 | H56: 18173.07539 | I56: 22535.33348 | J56: 27944.53351 | K56: 34651.94156 | L56: 42969.12753 | M56: 53282.43814
A57: Extra donuts(over) | B57: =(B56*124%)-B56 -> 1199.28 | C57: =(C56*124%)-C56 -> 1487.28 | D57: 1844.4 | E57: 2287.2288 | F57: 2836.336512 | G57: 3517.230075 | H57: 4361.538093 | I57: 5408.480035 | J57: 6706.688044 | K57: 8316.465974 | L57: 10312.59061 | M57: 12787.78515
A58: Unsatisfied customers (short) | B58: =3*124% -> 3.72 | C58: =3*124% -> 3.72 | D58: 3.72 | E58: 3.72 | F58: 3.72 | G58: 3.72 | H58: 3.72 | I58: 3.72 | J58: 3.72 | K58: 3.72 | L58: 3.72 | M58: 3.72
A59: Revenue
A60: coffee | B60: =4*B55 -> 20000 | C60: =4*C55 -> 24800 | D60: 30752 | E60: 38132.48 | F60: 47284.2752 | G60: 58632.50125 | H60: 72704.30155 | I60: 90153.33392 | J60: 111790.1341 | K60: 138619.7662 | L60: 171888.5101 | M60: 213141.7526
A61: donut | B61: =B55*3.5 -> 17500 | C61: =C55*3.5 -> 21700 | D61: 26908 | E61: 33365.92 | F61: 41373.7408 | G61: 51303.43859 | H61: 63616.26385 | I61: 78884.16718 | J61: 97816.3673 | K61: 121292.2955 | L61: 150402.4464 | M61: 186499.0335
A62: Revenue from day old sales | B62: =B55*1.25 -> 6250 | C62: =C55*1.25 -> 7750 | D62: 9610 | E62: 11916.4 | F62: 14776.336 | G62: 18322.65664 | H62: 22720.09423 | I62: 28172.91685 | J62: 34934.41689 | K62: 43318.67695 | L62: 53715.15942 | M62: 66606.79768
A63: Total Revenue | B63: =SUM(B60:B62) -> 43750 | C63: =SUM(C60:C62) -> 54250 | D63: 67270 | E63: 83414.8 | F63: 103434.352 | G63: 128258.5965 | H63: 159040.6596 | I63: 197210.4179 | J63: 244540.9183 | K63: 303230.7386 | L63: 376006.1159 | M63: 466247.5837
A64: Expenses
A65: Fixed Expenses | B65: 7050 | C65: 7051 | D65: 7052 | E65: 7053 | F65: 7054 | G65: 7055 | H65: 7056 | I65: 7057 | J65: 7058 | K65: 7059 | L65: 7060 | M65: 7061
A66: Total Fixed Expense | B66: =B65 -> 7050 | C66: =C65 -> 7051 | D66: 7052 | E66: 7053 | F66: 7054 | G66: 7055 | H66: 7056 | I66: 7057 | J66: 7058 | K66: 7059 | L66: 7060 | M66: 7061
A68: Variable Expenses
A69: Coffee Variable expense | B69: =0.35*B55 -> 1750 | C69: =0.35*C55 -> 2170 | D69: 2690.8 | E69: 3336.592 | F69: 4137.37408 | G69: 5130.343859 | H69: 6361.626385 | I69: 7888.416718 | J69: 9781.63673 | K69: 12129.22955 | L69: 15040.24464 | M69: 18649.90335
A70: Donut Variable expense | B70: =0.5*B55 -> 2500 | C70: =0.5*C55 -> 3100 | D70: 3844 | E70: 4766.56 | F70: 5910.5344 | G70: 7329.062656 | H70: 9088.037693 | I70: 11269.16674 | J70: 13973.76676 | K70: 17327.47078 | L70: 21486.06377 | M70: 26642.71907
A71: Total Variable Expenses | B71: =B69+B70 -> 4250 | C71: =C69+C70 -> 5270 | D71: 6534.8 | E71: 8103.152 | F71: 10047.90848 | G71: 12459.40652 | H71: 15449.66408 | I71: 19157.58346 | J71: 23755.40349 | K71: 29456.70032 | L71: 36526.3084 | M71: 45292.62242
A72: Expenses: due to lost sales | B72: =0.85*3 -> 2.55 | C72: =0.85*3 -> 2.55 | D72: 2.55 | E72: 2.55 | F72: 2.55 | G72: 2.55 | H72: 2.55 | I72: 2.55 | J72: 2.55 | K72: 2.55 | L72: 2.55 | M72: 2.55
A73: Total Expenses | B73: =B71+B72+B66 -> 11302.55 | C73: =C71+C72+C66 -> 12323.55 | D73: 13589.35 | E73: 15158.702 | F73: 17104.45848 | G73: 19516.95652 | H73: 22508.21408 | I73: 26217.13346 | J73: 30815.95349 | K73: 36518.25032 | L73: 43588.8584 | M73: 52356.17242
N74: Yearly Total
A75: Profit Donuts and Coffee | B75: =B63-B73 -> 32447.45 | C75: =C63-C73 -> 41926.45 | D75: 53680.65 | E75: 68256.098 | F75: 86329.89352 | G75: 108741.64 | H75: 136532.4456 | I75: 170993.2845 | J75: 213724.9648 | K75: 266712.4883 | L75: 332417.2575 | M75: 413891.4113 | N75: =SUM(B75:M75) -> 1925654.033

Sheet Expected Values Pt3
B1: PAYOFF TABLE
C3: State of Nature | H3: Summary of Results | I3: Methods
B4: Decision Alternatives | C4: Low | D4: Average | E4: High | H4: =B4 -> Decision Alternatives | I4: Maximin | J4: MaxiMax | K4: Laplace | L4: MinMax regret | M4: EVUII | N4: EOL
B5: current operation | C5: 3000 | D5: 4000 | E5: 4800
B6: Franchise | C6: 5000 | D6: 4000 | E6: 4960
F7: 0.2 | H7: Decision Alternatives
B8: DM UNDER IGNORANCE | F8: 0.55
F9: 0.25 | H9: Kiana should choose to:
B10: Maximin
C11: State of Nature
B12: Decision Alternatives | C12: Low | D12: Average | E12: High | H12: Because:
C14: Nil | D14: Nil | E14: Nil
B17: Maximax
C18: State of Nature
B19: Decision Alternatives | C19: Low | D19: Average | E19: High
C21: Nil | D21: Nil | E21: Nil
B24: Laplace
C25: State of Nature
B26: Decision Alternatives | C26: Low | D26: Average | E26: High
C28: Nil | D28: Nil | E28: Nil
B31: Minimax Regret
B32: Regret table | C32: State of Nature
B33: Decision Alternatives | C33: Low | D33: Average | E33: High
C35: Nil | D35: Nil | E35: Nil
B37: DM UNDER RISK
B38: EVUII
C39: State of Nature
B40: Decision Alternatives | C40: Low | D40: Average | E40: High
B41: Probability
C43: Nil | D43: Nil | E43: Nil
B46: EVUPI
C47: State of Nature
B48: Decision Alternatives | C48: Low | D48: Average | E48: High
B49: Probability
C50: Nil | D50: Nil | E50: Nil
B52: EVPI
B54: EOL
B55: Regret table | C55: State of Nature
B56: Decision Alternatives | C56: Low | D56: Average | E56: High
B57: Probability
C59: Nil | D59: Nil | E59: Nil

Sheet Sheet9
